Cogmind - Beta 16 @@@ ROGUE MODE // 2025.11.29 @ 13:29:58 Player: LightKnight Result: Self-destructed Performance ------------- Evolutions (2) 1000 Regions Visited (5) 1000 Robots Destroyed (46) 230 Value Destroyed (979) 979 Prototype IDs (2) 40 Alien Tech Used (0) 0 Bonus (0) 0 TOTAL SCORE: 3249 Bonus ------- None Cogmind --------- Core Integrity 533/550 Matter 225/300 Energy 160/160 System Corruption 0% Temperature Warm (105) Movement Rolling (115) Ox1 Location -8/Materials Parts ------- > --- POWER (1) -------- Light Nuclear Core > --- PROPULSION (3) --- Light Treads Compact Wheel Compact Wheel > --- UTILITY (3) ------ Large Storage Unit Targeting Computer Light Armor Plating > --- WEAPON (4) ------- Particle Cannon Light Cannon Light Cannon Grenade Launcher > --- INVENTORY (15) --- Ion Engine Light Fission Core Huge Storage Unit High-capacity Matter Pod (200) Field Recycling Unit (0) Light Cannon Light Cannon Datajack Mining Laser Peak State ------------ > --- POWER ------------ Light Nuclear Core > --- PROPULSION ------- Light Treads Compact Wheel Compact Wheel > --- UTILITY ---------- Large Storage Unit Targeting Computer Light Armor Plating > --- WEAPON ----------- Particle Cannon Light Cannon Light Cannon Light Cannon > --- INVENTORY -------- Ion Engine Light Fission Core Huge Storage Unit High-capacity Matter Pod Field Recycling Unit Light Cannon Grenade Launcher Datajack Mining Laser [Rating: 15] Favorites ----------- Power Light Nuclear Core Engine Ion Engine Power Core Light Nuclear Core Propulsion Light Treads Treads Light Treads Leg Aluminum Leg Wheel Compact Wheel Utility Large Storage Unit Storage Large Storage Unit Processor Targeting Computer Protection Light Armor Plating Weapon Heavy EM Pulse Gun Energy Gun Heavy EM Pulse Gun Energy Cannon Particle Cannon Ballistic Gun Assault Rifle Ballistic Cannon Light Cannon Launcher Grenade Launcher Special Weapon Mining Laser Build | -11 -10 -10 -10 -9 -8 ------- Run | Yrd Mat Min Exi Min Mat Slots Evolved 4 | . . . . . 4 Power . | . . . . . . Propulsion 1 | . . . . . 1 Utility 1 | . . . . . 1 Weapon 2 | . . . . . 2 Parts Attached 24 | 1 12 2 . 4 5 Power 3 | . 2 1 . . . Engine 2 | . 2 . . . . Core 1 | . . 1 . . . Reactor . | . . . . . . Propulsion 5 | . 2 . . 2 1 Treads 3 | . 2 . . 1 . Leg . | . . . . . . Wheel 2 | . . . . 1 1 Hover . | . . . . . . Flight . | . . . . . . Utility 3 | . 2 . . . 1 Device . | . . . . . . Storage 1 | . 1 . . . . Processor 1 | . 1 . . . . Hackware . | . . . . . . Protection 1 | . . . . . 1 Artifact . | . . . . . . Weapon 13 | 1 6 1 . 2 3 Energy Gun 4 | . 3 1 . . . Energy Cannon 1 | . . . . . 1 Ballistic Gun 1 | 1 . . . . . Ballistic Cannon 5 | . 2 . . 2 1 Launcher 1 | . . . . . 1 Special Weapon 1 | . 1 . . . . Impact Weapon . | . . . . . . Slashing Weapon . | . . . . . . Piercing Weapon . | . . . . . . Special Melee Weapon . | . . . . . . Unidentified Prototypes . | . . . . . . Parts Lost 7 | . 2 1 . 4 . Power 1 | . 1 . . . . Propulsion 2 | . . . . 2 . Utility . | . . . . . . Weapon 4 | . 1 1 . 2 . Highest Loss Streak 4 | . 1 1 . 4 . To Critical Strikes . | . . . . . . Average Backups 13 | 6 12 14 14 13 9 Power 1 | 1 1 1 1 2 2 Propulsion 2 | 4 2 2 2 . . Utility 2 | . . 2 3 3 3 Weapon 6 | 1 7 6 6 4 3 Tool/Special . | . . . . . . Unused Backups 18 | . 10 1 . 2 5 Power 2 | . . 1 . . 1 Propulsion 7 | . 6 . . 1 . Utility 4 | . 1 . . . 3 Weapon 3 | . 3 . . . . Tool/Special 2 | . . . . 1 1 Average Slot Usage (%) 99 | . 99 99 100 93 96 Engine 3 | . 13 3 . . . Core 9 | . . 10 14 14 9 Treads 26 | . 27 28 28 20 8 Storage 13 | . 14 14 14 14 9 Processor 13 | . 13 14 14 14 9 Energy Gun 20 | . 17 27 21 13 . Ballistic Cannon 4 | . 9 . . 14 25 Special Weapon 3 | . . . 6 . . Peak Build Rating 15 | 6 10 12 13 13 15 Average Rating 11 | 6 9 11 12 10 14 On Entrance 9 | 6 6 10 12 13 10 Avg Prop Armor Cover (%) 6 | . . . . 11 6 Naked Turns . | . . . . . . Heaviest Build 41 | 12 34 31 31 31 41 Greatest Support 40 | 20 40 40 40 40 32 Greatest Overweight (x) 1 | . . . . 1 1 Average Overweight (x) . | . . . . . 1 Largest Inventory Capacity 15 | 8 15 15 15 15 15 Average Capacity 14 | 8 14 15 15 15 15 Most Carried 15 | 6 15 15 15 15 11 Average Carried 13 | 6 12 14 14 13 9 Final Capacity 15 | 8 15 15 15 15 15 Final Carried 15 | 6 14 14 15 12 9 Class Distribution -------------------- 95% | Mutant 4% | Scavenger-Gunner Dominant Class ---------------- Mutant | -10/Materials Mutant | -10/Mines Mutant | -10/Exiles Mutant | -9/Mines Scavenger-Gunner | -8/Materials Resources | -11 -10 -10 -10 -9 -8 ----------- Run | Yrd Mat Min Exi Min Mat Matter Collected 687 | 200 288 20 . 101 78 Remotely . | . . . . . . Salvage Created 1149 | . 677 218 . 127 127 Parts 81 | . 48 20 . 4 9 Haulers Intercepted 2 | . 2 . . . . Recyclers Shooed 3 | . 2 . . 1 . Parts Field Recycled . | . . . . . . Retrieved Matter . | . . . . . . Parts Self-Destructed . | . . . . . . Prevented . | . . . . . . Parts Restored . | . . . . . . Kills | -11 -10 -10 -10 -9 -8 ------- Run | Yrd Mat Min Exi Min Mat Combat Hostiles Destroyed 33 | . 17 8 . 1 7 Guns 14 | . 6 8 . . . Cannons 12 | . 10 . . 1 1 AOE 7 | . 1 . . . 6 Classes Destroyed 11 | . 8 1 . 1 1 Worker 1 | . 1 . . . . Builder 2 | . . 1 . . 1 Tunneler 1 | . 1 . . . . Hauler 2 | . 2 . . . . Recycler 3 | . 1 . . 2 . Operator 2 | . 2 . . . . Watcher 2 | . 2 . . . . Swarmer 16 | . 6 6 . . 4 Grunt 15 | . 11 2 . . 2 Duelist 1 | . . . . . 1 Demolisher 1 | . . . . 1 . Best Kill Streak 8 | . 3 3 . 1 8 Combat Bots Only 7 | . 3 3 . 1 7 Max Kills in Single Turn 2 | . 2 2 . 1 2 Gunslinging 1 | . 1 1 . . . Exploded 2 | . 1 . . . 2 Melee . | . . . . . . Uniques/NPCs Destroyed . | . . . . . . Combat | -11 -10 -10 -10 -9 -8 -------- Run | Yrd Mat Min Exi Min Mat Hostile Shots Fired 96 | . 54 26 . 8 8 Missed 22 | . 17 2 . . 3 Hits 74 | . 37 24 . 8 5 Projectile 74 | . 37 24 . 8 5 AOE 8 | . . . . 8 . Critical Strikes 1 | . 1 . . . . Damage Taken 1044 | . 427 230 . 334 53 Core 169 | . 52 41 . 59 17 Absorbed by Shields . | . . . . . . Regen/Repaired (Parts) 93 | . . . . . 93 Core Remaining (%) 69 | 100 . . . 39 . Volleys Fired 226 | . 46 10 153 7 10 Largest 3 | . 2 2 2 2 3 Hottest 128 | . 100 90 100 60 128 Shots Fired 338 | . 91 20 199 14 14 Gun 198 | . 46 20 132 . . Cannon 67 | . 44 . . 14 9 Launcher 5 | . . . . . 5 Special 68 | . 1 . 67 . . Kinetic 65 | . 44 . . 14 7 Thermal 70 | . 1 . 67 . 2 Explosive 5 | . . . . . 5 Electromagnetic 198 | . 46 20 132 . . Robot Hit Streak 10 | . 9 10 . 3 1 Robot Miss Streak 5 | . 2 3 . 3 5 Penetration Max . | . . . . . . Secondary Targets 4 | . 2 2 . . . Max Gunslinging Chain 1 | . 1 1 . . . Shots Hit Robots 78 | . 58 11 . 6 3 Core Hits 53 | . 29 9 . 3 12 Critical Kills . | . . . . . . Critical Parts Destroyed . | . . . . . . Critical Strikes 3 | . 3 . . . . Blast 1 | . 1 . . . . Corrupt 2 | . 2 . . . . Melee Attacks . | . . . . . . Impact . | . . . . . . Slashing . | . . . . . . Piercing . | . . . . . . Sneak Attacks . | . . . . . . Combat Hostiles . | . . . . . . Follow-up Attacks . | . . . . . . Damage Inflicted 2203 | . 1340 201 . 105 557 Guns 677 | . 506 171 . . . Cannons 660 | . 516 . . 105 39 Explosions 763 | . 245 . . . 518 Melee . | . . . . . . Ramming 79 | . 49 30 . . . Kinetic 660 | . 516 . . 105 39 Thermal 140 | . 140 . . . . Explosive 593 | . 129 . . . 464 Electromagnetic 731 | . 506 171 . . 54 Impact . | . . . . . . Slashing . | . . . . . . Piercing . | . . . . . . Highest Corruption . | . . . . . . Average Corruption . | . . . . . . Corruption Purged . | . . . . . . Corruption Blocked . | . . . . . . Overload Shots . | . . . . . . Overflow Damage 30 | . 24 . . . 6 Projectiles 1 | . 1 . . . . Explosions 29 | . 23 . . . 6 Melee . | . . . . . . Knockbacks 9 | . 5 1 . 3 . Impact 3 | . 2 1 . . . Kinetic 5 | . 3 . . 2 . Secondary 1 | . . . . 1 . Self-Inflicted Damage 28 | . 28 . . . . Shots 1 | . 1 . . . . Rammed 13 | . 10 3 . . . Targets Rammed 14 | . 10 4 . . . Kicked . | . . . . . . Crushed 1 | . . 1 . . . Highest Temperature 254 | . 180 129 254 18 105 Average Temperature 58 | . 44 56 63 6 52 Received Heat Transfer 225 | . 168 48 . . 9 Siege Activations . | . . . . . . Martial Activations . | . . . . . . Shielding Activations . | . . . . . . Robots Disrupted . | . . . . . . Combat Hostiles . | . . . . . . Robots Corrupted . | . . . . . . Combat Hostiles . | . . . . . . Parts Fried 2 | . 2 . . . . Impact Corruptions . | . . . . . . Robots Melted . | . . . . . . Combat Hostiles . | . . . . . . Parts Melted . | . . . . . . Heat Transferred 300 | . 300 . . . . Parts Sabotaged . | . . . . . . Parts Stolen . | . . . . . . Parts Stripped . | . . . . . . Power Chain Reactions 3 | . 3 . . . . Alert | -11 -10 -10 -10 -9 -8 ------- Run | Yrd Mat Min Exi Min Mat Maximum Alert Level . | . . . . . . Low Security (%) 100 | 100 100 100 . 100 100 Level 1 . | . . . . . . Level 2 . | . . . . . . Level 3 . | . . . . . . Level 4 . | . . . . . . Level 5 . | . . . . . . High Security . | . . . . . . Max Security . | . . . . . . Peak Influence 199 | . 181 120 . 20 199 Initial 45 | . . 45 . . . Average 59 | . 96 40 . 1 14 Influence Increases 1026 | . 563 210 . 30 223 Destroy 0b10 Robot/C 660 | . 340 160 . 20 140 Destroy 0b10 Robot/NC 65 | . 45 5 . 10 5 Destroy Leader 128 | . 78 30 . . 20 Successful Hack 30 | . 26 . . . 4 Select Force Hacks 30 | . 30 . . . . Disable Machine 60 | . 15 . . . 45 Destroy Structure 38 | . 29 . . . 9 Lose Combat Pursuer 15 | . . 15 . . . Influence Decreases 837 | . 445 328 . 30 34 Entered New Map 73 | . . 73 . . . Time Decay 734 | . 425 245 . 30 34 Lost Part 30 | . 20 10 . . . Squads Dispatched 5 | . 4 . . . 1 Investigation 2 | . 2 . . . . Extermination . | . . . . . . Reinforcement 3 | . 2 . . . 1 Assault . | . . . . . . Garrison . | . . . . . . Intercept . | . . . . . . Searches Triggered . | . . . . . . Construction Impeded . | . . . . . . Haulers Reinforced . | . . . . . . Active Scanning Responses . | . . . . . . Cargo Convoy Interrupts . | . . . . . . Stealth | -11 -10 -10 -10 -9 -8 --------- Run | Yrd Mat Min Exi Min Mat Distress Signals 1 | . . . . . 1 Communications Jammed . | . . . . . . Distress Signals . | . . . . . . Times Spotted 46 | . 24 9 . 2 11 Peak Tracking Total 6 | . 4 3 . 2 6 Tactical Retreats 1 | . . 1 . . . Traps | -11 -10 -10 -10 -9 -8 ------- Run | Yrd Mat Min Exi Min Mat Traps Triggered 1 | . 1 . . . . Indirectly . | . . . . . . Trap Hack Attempts . | . . . . . . Triggered . | . . . . . . Disarmed . | . . . . . . Reprogrammed . | . . . . . . Reused . | . . . . . . Traps Extracted . | . . . . . . Installed . | . . . . . . Triggered . | . . . . . . Machines | -11 -10 -10 -10 -9 -8 ---------- Run | Yrd Mat Min Exi Min Mat Machines Disabled 10 | . 1 . 6 . 3 Max in Single Turn 2 | . 1 . 1 . 2 Machines Repaired . | . . . . . . Machines Dismantled . | . . . . . . Machines Sabotaged . | . . . . . . Overloaded Fab Kills . | . . . . . . Hacking | -11 -10 -10 -10 -9 -8 --------- Run | Yrd Mat Min Exi Min Mat Machines Accessed 14 | . 7 . 4 . 3 Terminals 8 | . 6 . . . 2 Fabricators . | . . . . . . Repair Stations 1 | . . . . . 1 Recycling Units 1 | . 1 . . . . Scanalyzers . | . . . . . . Garrison Access . | . . . . . . Total Hacks 34 | . 22 . 4 . 8 Successful 19 | . 11 . 4 . 4 Failed 14 | . 10 . . . 4 Catastrophic . | . . . . . . Database Lockouts 1 | . 1 . . . . Manual 25 | . 18 . 1 . 6 Terminals 27 | . 21 . . . 6 Fabricators . | . . . . . . Repair Stations 2 | . . . . . 2 Recycling Units 1 | . 1 . . . . Scanalyzers . | . . . . . . Garrison Access . | . . . . . . Terminal Hacks 8 | . 4 . 4 . . Record 4 | . . . 4 . . Robot Analysis 1 | . 1 . . . . Prototype ID Bank 1 | . 1 . . . . Locate Traps 1 | . 1 . . . . Hauler Manifests 1 | . 1 . . . . Fabricator Hacks . | . . . . . . Repair Station Hacks 2 | . . . . . 2 Scan Component 1 | . . . . . 1 Repair 1 | . . . . . 1 Recycling Unit Hacks . | . . . . . . Scanalyzer . | . . . . . . Garrison Access Hacks . | . . . . . . Unauthorized Hacks 9 | . 7 . . . 2 Terminals 8 | . 6 . . . 2 Botnet 5 | . 4 . . . 1 Skim 3 | . 2 . . . 1 Fabricators . | . . . . . . Repair Stations . | . . . . . . Recycling Units 1 | . 1 . . . . Tunnel 1 | . 1 . . . . Scanalyzers . | . . . . . . Garrison Access . | . . . . . . Data Cores Recovered 1 | . 1 . . . . Used 1 | . 1 . . . . Hacking Detections 7 | . 5 . . . 2 Full Trace Events . | . . . . . . Feedback Events . | . . . . . . Feedback Blocked . | . . . . . . Robot Schematics Acquired . | . . . . . . Robots Built . | . . . . . . Authchips . | . . . . . . Time . | . . . . . . Total Robot Build Rating . | . . . . . . Part Schematics Acquired . | . . . . . . Parts Built . | . . . . . . Authchips . | . . . . . . Time . | . . . . . . Total Part Build Rating . | . . . . . . Part Studies Acquired . | . . . . . . Parts Repaired 1 | . . . . . 1 Time 26 | . . . . . 26 Parts Recycled . | . . . . . . Recycled Matter . | . . . . . . Retrieved Matter . | . . . . . . Retrieved Components . | . . . . . . Parts Scanalyzed . | . . . . . . Part Schematics Acquired . | . . . . . . Parts Damaged . | . . . . . . Bothacking | -11 -10 -10 -10 -9 -8 ------------ Run | Yrd Mat Min Exi Min Mat Used RIF Installer . | . . . . . . Robots Hacked . | . . . . . . Non-combat . | . . . . . . Combat . | . . . . . . Robot Hacks Applied . | . . . . . . Relay Couplers Released . | . . . . . . Fabnet Peak Effective % . | . . . . . . Robots Rewired . | . . . . . . Allies Hacked . | . . . . . . Hacks Repelled . | . . . . . . Allies | -11 -10 -10 -10 -9 -8 -------- Run | Yrd Mat Min Exi Min Mat Total Allies . | . . . . . . Largest Group . | . . . . . . Highest-Rated Group . | . . . . . . Highest-Rated Ally . | . . . . . . Total Orders . | . . . . . . Ally Attacks . | . . . . . . Total Damage . | . . . . . . Kills . | . . . . . . Allies Corrupted . | . . . . . . Allies Melted . | . . . . . . Intel | -11 -10 -10 -10 -9 -8 ------- Run | Yrd Mat Min Exi Min Mat Active Infowar (turns) . | . . . . . . Robot Analysis Total 1 | . 1 . . . . Derelict Logs Recovered 2 | . . 1 . 1 . Drone Launches . | . . . . . . Drone Recoveries . | . . . . . . Exploration | -11 -10 -10 -10 -9 -8 ------------- Run | Yrd Mat Min Exi Min Mat Turns Passed 4876 | 2 1208 848 2283 315 220 Spaces Moved 2506 | 1 628 506 1068 161 142 Core . | . . . . . . Treads 2334 | . 623 506 1068 137 . Legs 6 | 1 5 . . . . Wheels 166 | . . . . 24 142 Hover . | . . . . . . Flight . | . . . . . . Fastest Speed 115 | 120 120 160 160 115 115 Average Speed 158 | 120 159 160 160 177 115 Slowest Speed 240 | 120 160 160 160 240 115 Overloaded Moves . | . . . . . . Propulsion Burnouts . | . . . . . . Robots Hopped . | . . . . . . Potential Cave-ins . | . . . . . . Cave-ins Triggered . | . . . . . . Exploration Rate (%) 54 | 2 88 97 97 27 13 Regions Visited 5 Branch Regions 3 Pre-discovered Areas 4 | . 1 1 . 2 . Known Exits Taken . | . . . . . . Unknown Exits Taken 5 | 1 1 1 1 1 . Scrap Searched 1 | . . 1 . . . Spaces Dug 14 | . . . 14 . . Terrain Destroyed 55 | . 24 . 23 . 8 Melee . | . . . . . . Projectile 23 | . . . 23 . . AOE 32 | . 24 . . . 8 Terrain Rammed . | . . . . . . Walls Destroyed . | . . . . . . Machines Disabled . | . . . . . . Actions | -11 -10 -10 -10 -9 -8 --------- Run | Yrd Mat Min Exi Min Mat Total 2929 | 1 737 523 1308 176 184 Wait 123 | . 11 . 85 1 26 Move 2501 | . 627 505 1067 160 142 Hop . | . . . . . . Pick Up 20 | . 16 1 1 2 . Fast Attach 7 | . 4 . . 1 2 Attach 11 | . 4 1 . 3 3 Detach 4 | . 4 . . . . Swap 10 | 1 5 1 2 . 1 Drop 13 | . 10 1 . 2 . Fire 226 | . 46 10 153 7 10 Melee . | . . . . . . Ram . | . . . . . . Kick . | . . . . . . Crush 14 | . 10 4 . . . Escape Stasis . | . . . . . . Rewire . | . . . . . . Trap . | . . . . . . Miscellaneous . | . . . . . . Route ------- -11/Scrapyard -10/Materials (discovered 3 exits: [*Mat x2] / [*Min]) -10/Mines (discovered 3 exits: [*Mat x2] / *Exi) -10/Exiles -9/Mines (discovered 2 exits: *Mat x2) -8/Materials History --------- Turn | Location | Event 3 | -11/Scrapyard | Discovered new exit (range 0) 3 | -11/Scrapyard | Entered Materials 313 | -10/Materials | Build established: Mutant 323 | -10/Materials | Discovered new exit (range 15) 841 | -10/Materials | Discovered new exit (range 8) 1016 | -10/Materials | Discovered new exit (range 16) 1046 | -10/Materials | Central database locked down 1211 | -10/Materials | Entered Mines 1226 | -10/Mines | Discovered new exit (range 10) 1248 | -10/Mines | Met a Derelict bent on vengeance 1471 | -10/Mines | Deemed a non-threat by the Exiles lab entrance 1471 | -10/Mines | Discovered new exit (range 5) 1600 | -10/Mines | Discovered new exit (range 9) 1778 | -10/Mines | Learned location of Storage (-9) 2059 | -10/Mines | Entered Exiles 2059 | -10/Exiles | Found Exiles lab abandoned 4321 | -10/Exiles | Discovered new exit (range 14) 4342 | -10/Exiles | Entered Mines 4444 | -9/Mines | Assembled infested the area 4449 | -9/Mines | Assisted by a Guerilla fighting off Assembled 4485 | -9/Mines | Core integrity fell below 50% 4516 | -9/Mines | Lost 4 parts (2n2w) 4582 | -9/Mines | Discovered new exit (range 5) 4646 | -9/Mines | Discovered new exit (range 7) 4657 | -9/Mines | Entered Materials 4657 | -8/Materials | Evolved 4 slots: Propulsion x1, Utility x1, Weapon x2 4768 | -8/Materials | Repaired Lgt. Treads 4877 | -8/Materials | Self-destructed Last Messages --------------- Time: 26 >>Repair Repairing Lgt. Treads... ETC: 26 04768_ Repair station completes Lgt. Treads repairs. 04768_ Acquired Lgt. Treads. 04833_ Terminal disabled. 04845_ G-47 Trooper destroyed. 04847_ L-31 Rogue destroyed. 04851_ ALERT: Hostiles spotted, dispatching reinforcements to Terminal M012. 04857_ Acquired 30 matter. 04859_ Acquired 48 matter. 04862_ W-25 Informer sends out distress signal. 04866_ S-10 Pest destroyed. 04871_ Neutrino Reactor explodes. 04871_ Destroyed Lgt. Assault Rifle. 04871_ Terminal disabled. 04874_ U-05 Engineer destroyed. 04874_ S-10 Pest destroyed. Map ----- +----------------------------------------------------+ | ??????????#! "R" #??# """ #"" #????? | | ??????????# " " #??# """ #"T ###??? | | ??????????# #??# """ #"" + #??? | | ??????????# #??# # # #??? | | ##############+#########+######## #??? | | #??? | | ######################## #??? | | ?????????????? ??# " " #??? | | ?????????????? """ ??# #??? | | ?????????????# "R" ## ####??? | | ?????????????# " " # #?????? | | ?????????????# + ! #?????? | | ?????????????# """ # ########???? | | ?????????????# """ # #??# #???? | | ?????????????? """?# #??# #???? | | ??????????????? ?# t #??# #???? | | ????????????########### w#### #???? | | ??????????? #???? | | ??????????? #???? | | ??????????? """ u ! #???? | | ???????????#+### """ = / #???? | | ???????????????# """ = #???? | | ???????????????# #???? | | ???????????????# #???? | | ???????????????# """ #???? | | ???????????????# """ @ #???? | | ???????????????# """ = #???? | | ??????????????? %!####Y #???? | | ??????????????" * #??# #???? | | ????????????? " %! "??# #???? | | ?????????????#"" Y??? #???? | | ??????????????"" "??? #???? | | ??????????????## #??? #???? | | ???????????????# #??? #???? | | ???????????????## [ #???????????? | | ????????????????# # ! # ????????????? | | ????????????????# ????????????? | | ????????????????# !! # ????????????? | | ??????????????????# !! ? ????????????? | | ????????????????????? ?? ????????????? | | ???????????????????????? ????????????? | | ?????????????????????????????????????? | | ?????????????????????????????????????? | | ?????????????????????????????????????? | | ?????????????????????????????????????? | | ?????????????????????????????????????? | | ?????????????????????????????????????? | | ?????????????????????????????????????? | | ?????????????????????????????????????? | | ?????????????????????????????????????? | +----------------------------------------------------+ Best States ------------- Heat Dissipation 31 Energy Generation 14 Energy Capacity 250 Matter Stores 300 Matter Capacity 300 Sight Range 16 Terrain Scan Density 10 Armor Coverage 150 Evasion (%) 55 Targeting Accuracy 5 Recoil Reduction 2 Item Schematics ----------------- None Robot Schematics ------------------ None Fabricated ------------ Nothing Repaired ---------- Lgt. Treads | 33% | -8/Materials Studied --------- None Alien Tech Used ----------------- None Achievements -------------- None Challenges ------------ None Game ------ Seed MachineDeepLeg Manual? 0 Play Time 00:25:50 Cumulative 469.5 hours Start 2025.11.22 @ 10:56:39 End 2025.11.29 @ 13:29:58 Sessions 12 Manual Loads 0 Difficulty Rogue Special Mode None Game No. 296 Rogue 296 Adventurer 0 Explorer 0 Win Type - Total 33 Types 26/1/4/2/0/0/0/0/0/0 Lore% 91 Gallery% 82 Achievement% 52 Wizard Run 0 Options --------- Layout 0 ASCII 0 Keyboard 1 Movement Arrows Keybinds 0 Fullscreen 2 Font 18/Terminus Map View 76x50 Zoom Use 0% Tactical HUD 1 Map Filters NONE Filters NONE Steam X RUN: bca9c1ce-07f5-4158-a059-b0a489e8891e